[Event "XXII Obert Internacional d'Escacs Sant Marti 2022"]
[Site "Barcelona, Spain"]
[Date "2022.07.18"]
[Round "6.1"]
[White "Aronyak, Ghosh"]
[Black "Diermair, Andreas"]
[Result "1/2-1/2"]
[TimeControl "1.30 fb 30"]
[WhiteElo "2486"]
[BlackElo "2452"]

1. c4 {[%clk 01:30:23]} {[%emt 00:00:36]} c6 {[%clk 01:30:43]} {[%emt
00:00:18]} 2. Nc3 {[%clk 01:29:04]} {[%emt 00:01:49]} d5 {[%clk 01:31:07]}
{[%emt 00:00:05]} 3. d4 {[%clk 01:29:10]} {[%emt 00:00:24]} Nf6 {[%clk
01:31:15]} {[%emt 00:00:22]} 4. cxd5 {[%clk 01:29:22]} {[%emt 00:00:19]} cxd5
{[%clk 01:31:38]} {[%emt 00:00:07]} 5. Bf4 {[%clk 01:29:45]} {[%emt 00:00:06]}
Nc6 {[%clk 01:31:47]} {[%emt 00:00:21]} 6. e3 {[%clk 01:30:09]} {[%emt
00:00:06]} Bf5 {[%clk 01:31:08]} {[%emt 00:01:09]} 7. Rc1 {[%clk 01:29:39]}
{[%emt 00:01:01]} Rc8 {[%clk 01:22:08]} {[%emt 00:09:30]} 8. Nf3 {[%clk
01:23:18]} {[%emt 00:06:50]} e6 {[%clk 01:19:07]} {[%emt 00:03:30]} 9. Bb5
{[%clk 01:19:25]} {[%emt 00:04:23]} Nd7 {[%clk 01:14:59]} {[%emt 00:04:38]} 10.
O-O {[%clk 01:18:55]} {[%emt 00:01:01]} Be7 {[%clk 01:14:04]} {[%emt 00:01:25]}
11. Na4 {[%clk 01:13:58]} {[%emt 00:05:27]} O-O {[%clk 01:10:26]} {[%emt
00:04:07]} 12. Bxc6 {[%clk 01:12:56]} {[%emt 00:01:32]} Rxc6 {[%clk 01:06:58]}
{[%emt 00:03:58]} 13. Rxc6 {[%clk 01:12:44]} {[%emt 00:00:42]} bxc6 {[%clk
01:07:27]} {[%emt 00:00:01]} 14. Ne5 {[%clk 01:12:05]} {[%emt 00:01:09]} Nxe5
{[%clk 01:06:47]} {[%emt 00:01:10]} 15. Bxe5 {[%clk 01:12:31]} {[%emt
00:00:04]} f6 {[%clk 01:05:36]} {[%emt 00:01:41]} 16. Bg3 {[%clk 01:12:44]}
{[%emt 00:00:16]} Qa5 {[%clk 01:03:40]} {[%emt 00:02:26]} 17. Qb3 {[%clk
01:12:15]} {[%emt 00:00:59]} Qa6 {[%clk 00:52:35]} {[%emt 00:11:35]} 18. Rc1
{[%clk 01:05:48]} {[%emt 00:06:57]} Bd3 {[%clk 00:51:46]} {[%emt 00:01:19]} 19.
h3 {[%clk 01:02:40]} {[%emt 00:03:36]} 1/2-1/2

[Event "XXII Obert Internacional d'Escacs Sant Marti 2022"]
[Site "Barcelona, Spain"]
[Date "2022.07.18"]
[Round "6.2"]
[White "Berdayes Ason, Dylan Isidro"]
[Black "Pena Gomez, Manuel"]
[Result "1-0"]
[TimeControl "1.30 fb 30"]
[WhiteElo "2480"]
[BlackElo "2492"]

1. d4 {[%clk 01:30:58]} {[%emt 00:00:01]} Nf6 {[%clk 01:29:16]} {[%emt
00:01:44]} 2. c4 {[%clk 01:31:25]} {[%emt 00:00:02]} g6 {[%clk 01:29:33]}
{[%emt 00:00:14]} 3. Nc3 {[%clk 01:31:53]} {[%emt 00:00:02]} Bg7 {[%clk
01:29:59]} {[%emt 00:00:04]} 4. e4 {[%clk 01:32:20]} {[%emt 00:00:03]} d6
{[%clk 01:30:23]} {[%emt 00:00:07]} 5. Be2 {[%clk 01:32:47]} {[%emt 00:00:02]}
O-O {[%clk 01:30:22]} {[%emt 00:00:31]} 6. Be3 {[%clk 01:33:14]} {[%emt
00:00:02]} e5 {[%clk 01:26:40]} {[%emt 00:04:13]} 7. d5 {[%clk 01:33:42]}
{[%emt 00:00:02]} c6 {[%clk 01:25:59]} {[%emt 00:01:12]} 8. g4 {[%clk
01:34:08]} {[%emt 00:00:04]} cxd5 {[%clk 01:17:35]} {[%emt 00:08:55]} 9. cxd5
{[%clk 01:34:35]} {[%emt 00:00:02]} Na6 {[%clk 01:15:18]} {[%emt 00:02:48]} 10.
h4 {[%clk 01:34:55]} {[%emt 00:00:09]} Nc5 {[%clk 01:08:00]} {[%emt 00:07:48]}
11. f3 {[%clk 01:35:23]} {[%emt 00:00:02]} a5 {[%clk 01:04:27]} {[%emt
00:04:03]} 12. h5 {[%clk 01:35:40]} {[%emt 00:00:12]} a4 {[%clk 00:58:26]}
{[%emt 00:06:31]} 13. Qd2 {[%clk 01:35:58]} {[%emt 00:00:12]} Qa5 {[%clk
00:53:22]} {[%emt 00:05:34]} 14. Nh3 {[%clk 01:36:11]} {[%emt 00:00:17]} Bd7
{[%clk 00:43:36]} {[%emt 00:10:16]} 15. Nf2 {[%clk 01:36:09]} {[%emt 00:00:32]}
a3 {[%clk 00:41:04]} {[%emt 00:03:03]} 16. b3 {[%clk 01:35:11]} {[%emt
00:01:28]} Rfc8 {[%clk 00:39:29]} {[%emt 00:02:05]} 17. Ncd1 {[%clk 01:18:54]}
{[%emt 00:16:46]} Qxd2+ {[%clk 00:30:36]} {[%emt 00:09:23]} 18. Kxd2 {[%clk
01:18:51]} {[%emt 00:00:34]} Bf8 {[%clk 00:30:04]} {[%emt 00:01:02]} 19. Nc3
{[%clk 01:18:14]} {[%emt 00:01:06]} Be7 {[%clk 00:28:39]} {[%emt 00:01:55]} 20.
Nd3 {[%clk 01:11:08]} {[%emt 00:07:36]} Na6 {[%clk 00:22:08]} {[%emt 00:07:02]}
21. b4 {[%clk 01:06:48]} {[%emt 00:04:50]} Bd8 {[%clk 00:22:24]} {[%emt
00:00:14]} 22. Rab1 {[%clk 01:06:17]} {[%emt 00:01:01]} Nc7 {[%clk 00:19:18]}
{[%emt 00:03:36]} 23. Ne1 {[%clk 01:06:08]} {[%emt 00:00:38]} Ba4 {[%clk
00:13:48]} {[%emt 00:06:01]} 24. Nxa4 {[%clk 01:05:16]} {[%emt 00:01:22]} Rxa4
{[%clk 00:14:15]} {[%emt 00:00:03]} 25. Nc2 {[%clk 01:05:28]} {[%emt 00:00:17]}
Nd7 {[%clk 00:10:20]} {[%emt 00:04:25]} 26. Rb3 {[%clk 01:05:28]} {[%emt
00:00:31]} b5 {[%clk 00:09:58]} {[%emt 00:00:53]} 27. Rc3 {[%clk 01:03:52]}
{[%emt 00:02:05]} Rb8 {[%clk 00:06:28]} {[%emt 00:04:00]} 28. Rb1 {[%clk
01:04:03]} {[%emt 00:03:23]} gxh5 29. gxh5 f5 {[%clk 00:04:48]} 30. Rc6 {[%emt
00:06:52]} Nf6 {[%clk 00:03:00]} {[%emt 00:00:43]} 31. Bd3 {[%clk 00:59:31]}
Nce8 32. h6 {[%emt 00:01:17]} Kf7 {[%clk 00:02:57]} {[%emt 00:00:31]} 33. Kc3
{[%clk 00:59:23]} {[%emt 00:00:38]} f4 {[%clk 00:00:41]} {[%emt 00:02:46]} 34.
Bf2 {[%clk 00:59:20]} {[%emt 00:00:32]} Ng8 {[%clk 00:00:32]} {[%emt 00:00:40]}
35. Kb3 {[%clk 00:59:42]} {[%emt 00:00:08]} Ne7 {[%clk 00:00:42]} {[%emt
00:00:20]} 36. Rc3 {[%clk 00:58:42]} {[%emt 00:01:29]} Kg6 {[%clk 00:01:04]}
{[%emt 00:00:09]} 37. Bxb5 {[%clk 00:57:46]} {[%emt 00:01:26]} Rxb5 {[%clk
00:01:22]} {[%emt 00:00:13]} 38. Kxa4 {[%clk 00:58:13]} {[%emt 00:00:03]} Rb8
{[%clk 00:01:45]} {[%emt 00:00:07]} 39. b5 {[%clk 00:58:01]} {[%emt 00:00:42]}
Nc7 {[%clk 00:01:36]} {[%emt 00:00:39]} 40. b6 {[%clk 00:57:49]} {[%emt
00:00:42]} Ra8+ {[%clk 00:01:20]} {[%emt 00:00:46]} 41. Kb4 {[%clk 00:57:09]}
{[%emt 00:01:09]} Rb8 {[%clk 00:00:34]} {[%emt 00:01:16]} 42. Kc4 {[%clk
00:57:18]} {[%emt 00:00:22]} Na6 {[%clk 00:00:32]} {[%emt 00:00:32]} 43. b7
{[%clk 00:57:28]} {[%emt 00:00:20]} Nc5 {[%clk 00:00:35]} {[%emt 00:00:26]} 44.
Bxc5 {[%clk 00:57:55]} {[%emt 00:00:03]} dxc5 {[%clk 00:01:01]} {[%emt
00:00:04]} 45. Rxa3 {[%clk 00:58:16]} {[%emt 00:00:09]} Kf7 {[%clk 00:00:32]}
{[%emt 00:00:59]} 46. d6 {[%clk 00:58:23]} {[%emt 00:00:23]} Nc6 {[%clk
00:00:52]} {[%emt 00:00:10]} 47. Ra8 {[%clk 00:58:07]} {[%emt 00:00:46]} Na5+
{[%clk 00:00:32]} {[%emt 00:00:50]} 48. Kd5 {[%clk 00:58:34]} {[%emt 00:00:03]}
1-0

[Event "XXII Obert Internacional d'Escacs Sant Marti 2022"]
[Site "Barcelona, Spain"]
[Date "2022.07.18"]
[Round "6.3"]
[White "Asis Gargatagli, Hipolito"]
[Black "Roshka, Yevgeniy"]
[Result "1/2-1/2"]
[TimeControl "1.30 fb 30"]
[WhiteElo "2514"]
[BlackElo "2497"]

1. e4 {[%clk 01:30:57]} {[%emt 00:00:02]} e6 {[%clk 01:30:09]} {[%emt
00:00:48]} 2. d4 {[%clk 01:31:11]} {[%emt 00:00:20]} d5 {[%clk 01:30:37]}
{[%emt 00:00:02]} 3. Nc3 {[%clk 01:31:27]} {[%emt 00:00:14]} Bb4 {[%clk
01:31:05]} {[%emt 00:00:02]} 4. e5 {[%clk 01:31:28]} {[%emt 00:00:29]} b6
{[%clk 01:31:34]} {[%emt 00:00:01]} 5. Qg4 {[%clk 01:31:06]} {[%emt 00:00:52]}
Bf8 {[%clk 01:32:02]} {[%emt 00:00:02]} 6. Nf3 {[%clk 01:29:44]} {[%emt
00:01:52]} Qd7 {[%clk 01:31:19]} {[%emt 00:01:12]} 7. Bb5 {[%clk 01:25:49]}
{[%emt 00:04:26]} c6 {[%clk 01:31:41]} {[%emt 00:00:08]} 8. Be2 {[%clk
01:26:13]} {[%emt 00:00:06]} Ba6 {[%clk 01:31:42]} {[%emt 00:00:29]} 9. O-O
{[%clk 01:26:25]} {[%emt 00:00:17]} Ne7 {[%clk 01:31:02]} {[%emt 00:01:11]} 10.
Rd1 {[%clk 01:12:48]} {[%emt 00:14:07]} Nf5 {[%clk 01:16:58]} {[%emt 00:14:34]}
1/2-1/2

[Event "XXII Obert Internacional d'Escacs Sant Marti 2022"]
[Site "Barcelona, Spain"]
[Date "2022.07.18"]
[Round "6.4"]
[White "Kovchan, Alexander"]
[Black "D`costa, Lorin"]
[Result "1-0"]
[TimeControl "1.30 fb 30"]
[WhiteElo "2468"]
[BlackElo "2372"]

1. e4 {[%clk 01:30:57]} {[%emt 00:00:02]} c6 {[%clk 01:26:20]} {[%emt
00:04:40]} 2. d4 {[%clk 01:31:13]} {[%emt 00:00:14]} d5 {[%clk 01:26:41]}
{[%emt 00:00:10]} 3. e5 {[%clk 01:31:25]} {[%emt 00:00:18]} Bf5 {[%clk
01:26:27]} {[%emt 00:00:43]} 4. Nf3 {[%clk 01:31:44]} {[%emt 00:00:11]} e6
{[%clk 01:26:45]} {[%emt 00:00:12]} 5. Be2 {[%clk 01:32:04]} {[%emt 00:00:11]}
Ne7 {[%clk 01:25:44]} {[%emt 00:01:30]} 6. O-O {[%clk 01:32:06]} {[%emt
00:00:28]} h6 {[%clk 01:25:40]} {[%emt 00:00:34]} 7. a4 {[%clk 01:30:11]}
{[%emt 00:02:26]} c5 {[%clk 01:15:56]} {[%emt 00:10:14]} 8. c4 {[%clk
01:20:04]} {[%emt 00:10:37]} dxc4 {[%clk 00:54:31]} {[%emt 00:21:54]} 9. dxc5
{[%clk 01:13:31]} {[%emt 00:07:03]} Nbc6 {[%clk 00:44:42]} {[%emt 00:10:18]} 10.
Bxc4 {[%clk 01:08:37]} {[%emt 00:05:25]} Ng6 {[%clk 00:34:29]} {[%emt
00:10:43]} 11. Be3 {[%clk 01:08:20]} {[%emt 00:00:48]} Qxd1 {[%clk 00:28:58]}
{[%emt 00:06:01]} 12. Rxd1 {[%clk 01:08:40]} {[%emt 00:00:10]} a6 {[%clk
00:29:08]} {[%emt 00:00:20]} 13. Be2 {[%clk 01:01:28]} {[%emt 00:07:41]} Ngxe5
{[%clk 00:23:35]} {[%emt 00:06:03]} 14. Nxe5 {[%clk 01:01:29]} {[%emt
00:00:30]} Nxe5 {[%clk 00:23:58]} {[%emt 00:00:06]} 15. Na3 {[%clk 00:57:55]}
{[%emt 00:04:04]} Be7 {[%clk 00:22:40]} {[%emt 00:01:47]} 16. Bd4 {[%clk
00:51:16]} {[%emt 00:07:11]} Nc6 {[%clk 00:18:07]} {[%emt 00:05:02]} 17. Bxg7
{[%clk 00:50:52]} {[%emt 00:00:54]} Rh7 {[%clk 00:16:49]} {[%emt 00:01:48]} 18.
Bc3 {[%clk 00:51:04]} {[%emt 00:00:18]} Bxc5 {[%clk 00:16:53]} {[%emt
00:00:27]} 19. Nc4 {[%clk 00:49:46]} {[%emt 00:01:48]} Ke7 {[%clk 00:11:28]}
{[%emt 00:05:54]} 20. Bf3 {[%clk 00:49:42]} {[%emt 00:00:34]} Rg8 {[%clk
00:04:25]} {[%emt 00:07:33]} 21. Bxc6 {[%clk 00:33:44]} {[%emt 00:16:28]} bxc6
{[%clk 00:04:45]} {[%emt 00:00:11]} 22. b4 {[%emt 00:00:13]} Be4 {[%clk
00:03:32]} {[%emt 00:01:41]} 23. bxc5 {[%emt 00:01:18]} Rxg2+ {[%clk 00:03:56]}
{[%emt 00:00:05]} 24. Kf1 {[%clk 00:33:25]} {[%emt 00:00:20]} Rxh2 {[%clk
00:03:53]} {[%emt 00:00:34]} 25. Ne5 {[%clk 00:31:08]} {[%emt 00:02:46]} Rh3
{[%clk 00:03:01]} {[%emt 00:01:23]} 26. Bb2 {[%clk 00:24:41]} {[%emt 00:06:57]}
Rb3 {[%clk 00:01:48]} {[%emt 00:01:43]} 27. Rd2 {[%clk 00:22:46]} {[%emt
00:02:25]} f6 {[%clk 00:01:56]} {[%emt 00:00:21]} 28. Ng4 {[%clk 00:20:06]}
{[%emt 00:03:09]} e5 {[%clk 00:01:24]} {[%emt 00:01:03]} 29. Rad1 {[%clk
00:17:11]} {[%emt 00:03:25]} Bf5 {[%clk 00:01:02]} {[%emt 00:00:52]} 30. Ne3
{[%clk 00:17:19]} {[%emt 00:00:22]} Bh3+ {[%clk 00:01:18]} {[%emt 00:00:15]} 31.
Ke2 {[%clk 00:17:42]} {[%emt 00:00:06]} Be6 {[%clk 00:01:15]} {[%emt 00:00:34]}
32. Rh1 {[%clk 00:17:27]} {[%emt 00:00:44]} h5 {[%clk 00:01:29]} {[%emt
00:00:17]} 33. Rh4 {[%clk 00:17:56]} Kf7 {[%clk 00:01:08]} {[%emt 00:00:51]} 34.
Ba1 {[%clk 00:16:51]} {[%emt 00:01:34]} Rb1 {[%clk 00:01:02]} {[%emt 00:00:36]}
35. Bc3 {[%clk 00:17:05]} {[%emt 00:00:16]} Rb3 {[%clk 00:01:09]} {[%emt
00:00:22]} 36. Ba5 {[%clk 00:17:18]} {[%emt 00:00:18]} f5 {[%clk 00:00:41]}
{[%emt 00:00:59]} 37. f4 {[%clk 00:16:41]} {[%emt 00:01:07]} Rg7 {[%clk
00:00:59]} {[%emt 00:00:11]} 38. Kf2 {[%clk 00:16:36]} {[%emt 00:00:35]} Rg4
{[%clk 00:00:43]} {[%emt 00:00:46]} 39. Nxg4 {[%clk 00:16:04]} {[%emt
00:01:02]} hxg4 {[%clk 00:01:12]} 40. Rh7+ {[%clk 00:45:10]} {[%emt 00:01:24]}
Kg6 {[%clk 00:31:25]} {[%emt 00:00:17]} 41. Re7 {[%clk 00:45:18]} {[%emt
00:00:23]} 1-0

[Event "XXII Obert Internacional d'Escacs Sant Marti 2022"]
[Site "Barcelona, Spain"]
[Date "2022.07.18"]
[Round "6.5"]
[White "Narciso Dublan, Marc"]
[Black "Perpinya Rofes, Lluis Maria"]
[Result "1/2-1/2"]
[TimeControl "1.30 fb 30"]
[WhiteElo "2461"]
[BlackElo "2297"]

1. e4 {[%clk 01:30:55]} {[%emt 00:00:03]} c5 {[%clk 01:30:46]} {[%emt
00:00:15]} 2. d3 {[%clk 01:31:11]} {[%emt 00:00:13]} Nc6 {[%clk 01:30:07]}
{[%emt 00:01:10]} 3. f4 {[%clk 01:31:24]} {[%emt 00:00:16]} g6 {[%clk
01:30:25]} {[%emt 00:00:13]} 4. Nf3 {[%clk 01:31:41]} {[%emt 00:00:12]} Bg7
{[%clk 01:30:13]} {[%emt 00:00:43]} 5. Be2 {[%clk 01:31:27]} {[%emt 00:00:43]}
d6 {[%clk 01:29:14]} {[%emt 00:01:30]} 6. c3 {[%clk 01:31:02]} {[%emt
00:00:54]} Nf6 {[%clk 01:28:34]} {[%emt 00:01:10]} 7. O-O {[%clk 01:30:17]}
{[%emt 00:01:14]} O-O {[%clk 01:29:00]} {[%emt 00:00:05]} 8. Kh1 {[%clk
01:30:09]} {[%emt 00:00:37]} b5 {[%clk 01:26:46]} {[%emt 00:02:44]} 9. a3
{[%clk 01:30:28]} {[%emt 00:00:11]} a5 {[%clk 01:22:33]} {[%emt 00:04:44]} 10.
Be3 {[%clk 01:30:45]} {[%emt 00:00:12]} Ba6 {[%clk 01:19:47]} {[%emt 00:03:17]}
11. Nbd2 {[%clk 01:27:12]} {[%emt 00:04:03]} b4 {[%clk 01:18:06]} {[%emt
00:02:11]} 12. d4 {[%clk 01:27:29]} {[%emt 00:00:13]} cxd4 {[%clk 01:04:09]}
{[%emt 00:14:27]} 13. cxd4 {[%clk 01:27:36]} {[%emt 00:00:22]} Bxe2 {[%clk
00:59:34]} {[%emt 00:05:05]} 14. Qxe2 {[%clk 01:28:00]} {[%emt 00:00:05]} d5
{[%clk 00:59:32]} {[%emt 00:00:33]} 15. e5 {[%clk 01:27:43]} {[%emt 00:00:47]}
Ne4 {[%clk 00:58:41]} {[%emt 00:01:21]} 16. Rfc1 {[%clk 01:16:59]} {[%emt
00:11:14]} Nxd2 {[%clk 00:43:52]} {[%emt 00:15:20]} 17. Nxd2 {[%clk 01:11:34]}
{[%emt 00:05:55]} Qb6 {[%clk 00:42:50]} {[%emt 00:01:32]} 18. a4 {[%clk
01:10:41]} {[%emt 00:01:23]} e6 {[%clk 00:32:27]} {[%emt 00:10:53]} 19. Nb3
{[%clk 01:08:37]} {[%emt 00:02:34]} Rfc8 {[%clk 00:24:02]} {[%emt 00:08:55]} 20.
Qb5 {[%clk 01:05:32]} {[%emt 00:03:34]} Qc7 {[%clk 00:21:36]} {[%emt 00:02:56]}
21. Rc2 {[%clk 00:52:28]} {[%emt 00:13:35]} Rab8 {[%clk 00:19:32]} {[%emt
00:02:34]} 22. Qf1 {[%clk 00:48:21]} {[%emt 00:04:36]} Bf8 {[%clk 00:17:05]}
{[%emt 00:02:57]} 23. Rac1 {[%clk 00:47:47]} {[%emt 00:01:03]} Qd7 {[%clk
00:12:17]} {[%emt 00:05:19]} 24. g4 {[%clk 00:26:01]} {[%emt 00:22:15]} Na7
{[%clk 00:10:20]} {[%emt 00:02:27]} 25. f5 {[%clk 00:24:10]} {[%emt 00:02:21]}
Rxc2 {[%clk 00:08:25]} {[%emt 00:02:25]} 26. Rxc2 {[%clk 00:24:25]} {[%emt
00:00:16]} Rc8 {[%clk 00:08:25]} {[%emt 00:00:31]} 27. Rxc8 {[%clk 00:09:16]}
{[%emt 00:15:38]} Nxc8 {[%clk 00:07:40]} {[%emt 00:01:15]} 28. fxe6 {[%clk
00:08:55]} {[%emt 00:00:50]} fxe6 {[%clk 00:07:44]} {[%emt 00:00:25]} 29. Qa6
{[%clk 00:06:13]} {[%emt 00:03:12]} h5 {[%clk 00:02:38]} {[%emt 00:05:37]} 30.
h3 {[%clk 00:05:21]} {[%emt 00:01:22]} hxg4 {[%clk 00:01:16]} {[%emt 00:01:53]}
31. hxg4 {[%clk 00:05:46]} {[%emt 00:00:04]} Qxa4 {[%clk 00:00:55]} {[%emt
00:00:51]} 32. Qxe6+ {[%clk 00:04:49]} {[%emt 00:01:26]} Kh7 {[%clk 00:01:23]}
{[%emt 00:00:04]} 33. Qxd5 {[%clk 00:03:20]} {[%emt 00:01:58]} Qa2 {[%clk
00:00:58]} {[%emt 00:00:55]} 34. Qb7+ {[%clk 00:01:22]} {[%emt 00:02:29]} Ne7
{[%clk 00:01:01]} {[%emt 00:00:26]} 35. Nc5 {[%clk 00:00:42]} {[%emt 00:01:10]}
Qxb2 {[%clk 00:00:57]} {[%emt 00:00:34]} 36. Ne6 {[%clk 00:00:41]} {[%emt
00:00:32]} Qb1+ {[%clk 00:00:58]} {[%emt 00:00:30]} 37. Bg1 {[%clk 00:01:09]}
{[%emt 00:00:01]} Qf1 {[%clk 00:01:03]} {[%emt 00:00:24]} 38. Nxf8+ {[%clk
00:00:49]} {[%emt 00:00:51]} Kg8 {[%clk 00:00:38]} {[%emt 00:00:55]} 39. Qxe7
{[%clk 00:00:32]} {[%emt 00:00:46]} Qh3+ {[%clk 00:01:04]} {[%emt 00:00:04]} 40.
Bh2 {[%clk 00:01:00]} {[%emt 00:00:02]} Qf1+ {[%clk 00:01:29]} {[%emt
00:00:05]} 1/2-1/2

[Event "XXII Obert Internacional d'Escacs Sant Marti 2022"]
[Site "Barcelona, Spain"]
[Date "2022.07.18"]
[Round "6.7"]
[White "Fernandez Madrid, Carlos"]
[Black "Macak, Stefan"]
[Result "0-1"]
[TimeControl "1.30 fb 30"]
[WhiteElo "2124"]
[BlackElo "2363"]

1. d4 {[%clk 01:28:49]} {[%emt 00:02:11]} Nf6 {[%clk 01:30:30]} {[%emt
00:00:31]} 2. g3 {[%clk 01:29:03]} {[%emt 00:00:16]} d5 {[%clk 01:29:38]}
{[%emt 00:01:22]} 3. Bg2 {[%clk 01:29:17]} {[%emt 00:00:15]} e6 {[%clk
01:29:41]} {[%emt 00:00:27]} 4. Nf3 {[%clk 01:29:37]} {[%emt 00:00:10]} c6
{[%clk 01:26:05]} {[%emt 00:04:07]} 5. O-O {[%clk 01:27:53]} {[%emt 00:02:11]}
Nbd7 {[%clk 01:26:09]} {[%emt 00:00:29]} 6. Bf4 {[%clk 01:27:05]} {[%emt
00:01:17]} Be7 {[%clk 01:23:55]} {[%emt 00:02:44]} 7. Nbd2 {[%clk 01:25:38]}
{[%emt 00:01:57]} O-O {[%clk 01:24:01]} {[%emt 00:00:25]} 8. c4 {[%clk
01:24:15]} {[%emt 00:01:53]} Nh5 {[%clk 01:21:40]} {[%emt 00:02:50]} 9. Qc2
{[%clk 01:19:55]} {[%emt 00:04:50]} Nxf4 {[%clk 01:18:48]} {[%emt 00:03:22]} 10.
gxf4 {[%clk 01:20:19]} {[%emt 00:00:06]} b6 {[%clk 01:16:31]} {[%emt 00:02:48]}
11. Rac1 {[%clk 01:18:14]} {[%emt 00:02:35]} Bb7 {[%clk 01:15:29]} {[%emt
00:01:32]} 12. f5 {[%clk 01:16:21]} {[%emt 00:02:23]} Bd6 {[%clk 01:09:49]}
{[%emt 00:06:10]} 13. Kh1 {[%clk 01:13:24]} {[%emt 00:03:27]} Re8 {[%clk
01:04:23]} {[%emt 00:05:56]} 14. e4 {[%clk 01:08:42]} {[%emt 00:05:11]} dxe4
{[%clk 01:02:18]} {[%emt 00:02:36]} 15. Nxe4 {[%clk 01:08:47]} {[%emt
00:00:24]} Bf4 {[%clk 01:00:13]} {[%emt 00:02:35]} 16. fxe6 {[%clk 01:07:57]}
{[%emt 00:01:20]} Rxe6 {[%clk 00:59:09]} {[%emt 00:01:35]} 17. Rce1 {[%clk
01:07:18]} {[%emt 00:01:08]} Nf8 {[%clk 00:51:29]} {[%emt 00:08:10]} 18. Ng3
{[%clk 01:06:45]} {[%emt 00:01:03]} Qc7 {[%clk 00:47:09]} {[%emt 00:04:51]} 19.
Rxe6 {[%clk 01:01:09]} {[%emt 00:06:05]} Nxe6 {[%clk 00:46:47]} {[%emt
00:00:52]} 20. Rd1 {[%clk 01:01:00]} {[%emt 00:00:38]} Rd8 {[%clk 00:43:47]}
{[%emt 00:03:31]} 21. Ne2 {[%clk 00:54:27]} {[%emt 00:07:03]} Bd6 {[%clk
00:38:19]} {[%emt 00:05:58]} 22. Qe4 {[%clk 00:52:29]} {[%emt 00:02:28]} g6
{[%clk 00:35:52]} {[%emt 00:02:58]} 23. Nc3 {[%clk 00:49:17]} {[%emt 00:03:41]}
Nf4 {[%clk 00:32:26]} {[%emt 00:03:56]} 24. Bf1 {[%clk 00:45:30]} {[%emt
00:04:18]} Qe7 {[%clk 00:25:31]} {[%emt 00:07:23]} 25. c5 {[%clk 00:40:03]}
{[%emt 00:05:59]} Qxe4 {[%clk 00:23:55]} {[%emt 00:02:06]} 26. Nxe4 {[%clk
00:40:24]} {[%emt 00:00:09]} Bxc5 {[%clk 00:11:22]} {[%emt 00:13:04]} 27. Nxc5
{[%clk 00:40:05]} {[%emt 00:00:49]} bxc5 {[%clk 00:11:44]} {[%emt 00:00:08]} 28.
Kg1 {[%clk 00:38:22]} {[%emt 00:02:13]} Ne6 {[%clk 00:10:30]} {[%emt 00:01:43]}
29. Bg2 {[%clk 00:35:22]} {[%emt 00:03:30]} Nxd4 {[%clk 00:08:51]} {[%emt
00:02:09]} 30. Re1 {[%clk 00:35:28]} {[%emt 00:00:23]} Nxf3+ {[%clk 00:06:05]}
{[%emt 00:03:17]} 31. Bxf3 {[%clk 00:35:54]} {[%emt 00:00:04]} Rd2 {[%clk
00:06:05]} {[%emt 00:00:30]} 32. Re7 {[%clk 00:35:52]} {[%emt 00:00:32]} Rxb2
{[%clk 00:05:40]} {[%emt 00:00:56]} 33. a4 {[%clk 00:34:45]} {[%emt 00:01:36]}
c4 {[%clk 00:05:05]} {[%emt 00:01:06]} 34. Rc7 {[%clk 00:32:53]} {[%emt
00:02:22]} c3 {[%clk 00:03:33]} {[%emt 00:02:01]} 35. Be4 {[%clk 00:33:09]}
{[%emt 00:00:14]} f5 {[%clk 00:01:18]} {[%emt 00:02:46]} 36. Bd3 {[%clk
00:33:09]} {[%emt 00:00:29]} Ba6 {[%clk 00:01:15]} {[%emt 00:00:33]} 37. Bxa6
{[%clk 00:33:06]} {[%emt 00:00:33]} c2 {[%clk 00:01:35]} {[%emt 00:00:10]} 38.
Bc4+ {[%clk 00:33:32]} {[%emt 00:00:04]} Kh8 {[%clk 00:01:09]} {[%emt
00:00:54]} 39. Rc8+ {[%clk 00:33:40]} {[%emt 00:00:24]} Kg7 {[%clk 00:01:36]}
{[%emt 00:00:03]} 40. Rc7+ {[%clk 00:33:50]} {[%emt 00:00:21]} Kh6 {[%clk
00:01:33]} {[%emt 00:00:32]} 0-1